Workbook

Sheet 기본작업-1
A1: 상공마트 인사기록
A3: 사번 | B3: 성명 | C3: 부서 | D3: 입사일자 | E3: 직통번호 | F3: 주소지 | G3: 실적
A4: Jmk-3585 | B4: 김충희 | C4: 경리부 | D4: 2015-05-18 | E4: 02) 302-4915 | F4: 강북구 삼양동 | G4: 12530
A5: Gpc-2273 | B5: 박선종 | C5: 식품부 | D5: 2017-02-18 | E5: 02) 853-1520 | F5: 도봉구 쌍문동 | G5: 35127
A6: Aud-3927 | B6: 이국명 | C6: 총무부 | D6: 2016-03-01 | E6: 02) 652-4593 | F6: 마포구 도화동 | G6: 65238
A7: Sbu-4528 | B7: 최미란 | C7: 가전부 | D7: 2018-11-15 | E7: 02) 526-2694 | F7: 성북구 돈암동 | G7: 58260

Sheet 기본작업-2
A1: 상공유통 3월 라면류 매출현황
A3: 제품군 | B3: 제품명 | C3: 강북 | E3: 강서 | F3: 경기 | H3: 제품별합계
C4: 삼양마트 | D4: 수유마트 | E4: 화곡마트 | F4: 김포마트 | G4: 강화마트
A5: 짜장 | B5: 왕짜장면 | C5: 25 | D5: 58 | E5: 56 | F5: 32 | G5: 24 | H5: =SUM(C5:G5) -> 195
B6: 첨짜장면 | C6: 52 | D6: 36 | E6: 27 | F6: 47 | G6: 36 | H6: =SUM(C6:G6) -> 198
A7: 짬뽕 | B7: 왕짬뽕면 | C7: 125 | D7: 156 | E7: 204 | F7: 157 | G7: 347 | H7: 989
B8: 첨짬뽕면 | C8: 34 | D8: 62 | E8: 62 | F8: 34 | G8: 82 | H8: 274
B9: 핫짬뽕면 | C9: 85 | D9: 36 | E9: 75 | F9: 64 | G9: 28 | H9: 288
A10: 비빔면 | B10: 열무비빔면 | C10: 68 | D10: 92 | E10: 51 | F10: 73 | G10: 54 | H10: 338
B11: 고추장면 | C11: 31 | D11: 30 | E11: 42 | F11: 17 | G11: 25 | H11: 145
B12: 메밀면 | C12: 106 | D12: 88 | E12: 124 | F12: 64 | G12: 72 | H12: 454
A13: 마트별합계 | C13: =SUM(C5:C12) -> 526 | D13: =SUM(D5:D12) -> 558 | E13: 641 | F13: 488 | G13: 668 | H13: 2881

Sheet 기본작업-3
A1: 상공상사 3월분 급여지급명세서
A3: 사번 | B3: 성명 | C3: 직위 | D3: 기본급 | E3: 제수당 | F3: 상여금 | G3: 총급여
A4: SJ01-023 | B4: 민제필 | C4: 부장 | D4: 4273000 | E4: 882000 | F4: =D4*0.25 -> 1068250 | G4: =SUM(D4:F4) -> 6223250
A5: SJ04-012 | B5: 나일형 | C5: 과장 | D5: 3697000 | E5: 724000 | F5: =D5*0.25 -> 924250 | G5: =SUM(D5:F5) -> 5345250
A6: SJ11-002 | B6: 제선영 | C6: 주임 | D6: 2856000 | E6: 430000 | F6: 714000 | G6: 4000000
A7: SJ10-021 | B7: 박민준 | C7: 대리 | D7: 3047000 | E7: 524000 | F7: 761750 | G7: 4332750
A8: SJ09-015 | B8: 최세연 | C8: 대리 | D8: 3140000 | E8: 480000 | F8: 785000 | G8: 4405000
A9: SJ13-007 | B9: 장태현 | C9: 사원 | D9: 2510000 | E9: 320000 | F9: 627500 | G9: 3457500
A10: SJ06-019 | B10: 추양선 | C10: 과장 | D10: 3506000 | E10: 542000 | F10: 876500 | G10: 4924500
A11: SJ08-004 | B11: 피종현 | C11: 대리 | D11: 3200000 | E11: 360000 | F11: 800000 | G11: 4360000
A12: SJ12-031 | B12: 김나리 | C12: 주임 | D12: 2734000 | E12: 324000 | F12: 683500 | G12: 3741500
A13: SJ12-012 | B13: 이정선 | C13: 사원 | D13: 2473000 | E13: 268000 | F13: 618250 | G13: 3359250
A14: SJ13-003 | B14: 박청국 | C14: 주임 | D14: 2810000 | E14: 302000 | F14: 702500 | G14: 3814500
A15: SJ09-001 | B15: 김평순 | C15: 대리 | D15: 2980000 | E15: 347000 | F15: 745000 | G15: 4072000

Sheet 계산작업
A1: [표1] | F1: [표2]
A2: 지점 | B2: 이름 | C2: 매출액 | D2: 순위 | F2: 이름 | G2: 부서 | H2: 직위 | I2: 기본급 | J2: 상여금
A3: 동부 | B3: 김연주 | C3: 28561500 | F3: 박영덕 | G3: 영업부 | H3: 부장 | I3: 3560000 | J3: 2512000
A4: 서부 | B4: 홍기민 | C4: 38651200 | F4: 주민경 | G4: 생산부 | H4: 과장 | I4: 3256000 | J4: 1826000
A5: 남부 | B5: 채동식 | C5: 19560000 | F5: 태진형 | G5: 총무부 | H5: 사원 | I5: 2560000 | J5: 1282000
A6: 북부 | B6: 이민섭 | C6: 32470000 | F6: 최민수 | G6: 생산부 | H6: 대리 | I6: 3075000 | J6: 1568000
A7: 서부 | B7: 길기훈 | C7: 56587200 | D7: 1위 | F7: 김평주 | G7: 생산부 | H7: 주임 | I7: 2856000 | J7: 1240000
A8: 남부 | B8: 남재영 | C8: 36521700 | F8: 한서라 | G8: 영업부 | H8: 사원 | I8: 2473000 | J8: 1195000
A9: 동부 | B9: 민기영 | C9: 52438600 | D9: 2위 | F9: 이국선 | G9: 총무부 | H9: 사원 | I9: 2372000 | J9: 1153000
A10: 북부 | B10: 박소연 | C10: 37542300 | F10: 송나정 | G10: 영업부 | H10: 주임 | I10: 2903000 | J10: 1200000
A12: 지점 | C12: 동부지점 합계 | F12: 상여금이 1,200,000원 보다 크면서, 평균기본급이상인 인원수 | J12: =COUNTIFS(J3:J10,">1200000", I3:I10,">="&AVERAGE(I3:I10))&"명" -> 3명
A13: 동부 | C13: =ROUNDUP(DSUM(A2:D10,C2,A12:A13),-3) -> 81001000
A15: [표3] | F15: [표4]
A16: 학번 | B16: 이름 | C16: 주민등록번호 | D16: 성별 | F16: 이름 | G16: 국사 | H16: 상식 | I16: 총점 | J16: 순위
A17: M1602001 | B17: 이민영 | C17: 990218-2304567 | D17: =CHOOSE(MID(C17,8,1),"남","여","남","여") -> 여 | F17: 이후정 | G17: 82 | H17: 94 | I17: =SUM(G17:H17) -> 176 | J17: =IF(LARGE($I$17:$I$24,1)=I17,"최우수",IF(LARGE($I$17:$I$24,2)=I17,"우수","")) -> 우수
A18: M1602002 | B18: 도홍진 | C18: 010802-3065821 | D18: =CHOOSE(MID(C18,8,1),"남","여","남","여") -> 남 | F18: 백천경 | G18: 63 | H18: 83 | I18: 146
A19: M1602003 | B19: 박수진 | C19: 011115-4356712 | D19: 여 | F19: 민경배 | G19: 76 | H19: 86 | I19: 162
A20: M1602004 | B20: 최만수 | C20: 980723-1935645 | D20: 남 | F20: 김태하 | G20: 62 | H20: 88 | I20: 150
A21: M1602005 | B21: 조용덕 | C21: 991225-1328650 | D21: 남 | F21: 이사랑 | G21: 92 | H21: 96 | I21: 188 | J21: 최우수
A22: M1602006 | B22: 김태훈 | C22: 021222-3264328 | D22: 남 | F22: 곽난영 | G22: 85 | H22: 80 | I22: 165
A23: M1602007 | B23: 편승주 | C23: 010123-3652942 | D23: 남 | F23: 장채리 | G23: 62 | H23: 77 | I23: 139
A24: M1602008 | B24: 곽나래 | C24: 001015-4685201 | D24: 여 | F24: 봉전미 | G24: 73 | H24: 68 | I24: 141
A27: [표5]
A28: 원서번호 | B28: 이름 | C28: 거주지 | D28: 지원학과
A29: M-120 | B29: 이민수 | C29: 서울시 강북구 | D29: =IFERROR(HLOOKUP(LEFT(A29,1),$B$38:$D$39,2,FALSE),"코드오류") -> 멀티미디어
A30: N-082 | B30: 김병훈 | C30: 대전시 대덕구 | D30: =IFERROR(HLOOKUP(LEFT(A30,1),$B$38:$D$39,2,FALSE),"코드오류") -> 네트워크
A31: S-035 | B31: 최주영 | C31: 인천시 남동구 | D31: 소프트웨어
A32: M-072 | B32: 길미라 | C32: 서울시 성북구 | D32: 멀티미디어
A33: S-141 | B33: 나태후 | C33: 경기도 김포시 | D33: 소프트웨어
A34: N-033 | B34: 전영태 | C34: 경기도 고양시 | D34: 네트워크
A35: M-037 | B35: 조영선 | C35: 강원도 춘천시 | D35: 멀티미디어
A36: A-028 | B36: 박민혜 | C36: 서울시 마포구 | D36: 코드오류
A38: 학과코드 | B38: S | C38: N | D38: M
A39: 학 과 명 | B39: 소프트웨어 | C39: 네트워크 | D39: 멀티미디어

Sheet 시나리오 요약
B2: 시나리오 요약
D3: 현재 값: | E3: 비율인상 | F3: 비율인하
E4: 만든 사람 Name 날짜 2012-03-03 수정한 사람 Mihyun Chung 날짜 2020-07-06 | F4: 만든 사람 Name 날짜 2012-03-03
B5: 변경 셀:
C6: 집행률계 | D6: 62.44379187 | E6: 80 | F6: 50
B7: 결과 셀:
C8: 집행액합계 | D8: 845027.4823 | E8: 1082608.8 | F8: 676630.5
B9: 참고: 현재 값 열은 시나리오 요약 보고서가 작성될 때의
B10: 변경 셀 값을 나타냅니다. 각 시나리오의 변경 셀들은
B11: 회색으로 표시됩니다.

Sheet 분석작업-1
A1: [표1] 공영개발 예산과목별 집행현황
A3: 항목 | B3: 예산 | C3: 집행액 | D3: 집행률
A4: 인건비 | B4: 221653 | C4: =B4*D4/100 -> 83563.181 | D4: 37.7
A5: 사무관리비 | B5: 15000 | C5: 12745.5 | D5: 84.97
A6: 공공운영비 | B6: 21827 | C6: 8453.5971 | D6: 38.73
A7: 국내여비 | B7: 9720 | C7: 1922.616 | D7: 19.78
A8: 예비비 | B8: 2347 | C8: 0 | D8: 0
A9: 시설비 | B9: 1082714 | C9: 275767.2558 | D9: 25.47
A10: 합계 | B10: =SUM(B4:B9) -> 1353261 | C10: =B10*D10/100 -> 845027.4823 | D10: 62.44379187

Sheet 분석작업-2
A1: [표1] 상공상사 야구동호회 회원명부
A3: 포지션 | B3: 이름 | C3: 부서 | D3: 나이 | E3: 가입기간 | F3: 참여도 | G3: 비고
A4: 투수 | B4: 이해탁 | C4: 총무부 | D4: 32 | E4: 6년 | F4: A급
A5: 투수 | B5: 왕전빈 | C5: 경리부 | D5: 26 | E5: 1년 | F5: C급
A6: 투수 | B6: 주병선 | C6: 생산부 | D6: 28 | E6: 2년 | F6: B급
A7: 포수 | B7: 김신수 | C7: 생산부 | D7: 30 | E7: 6년 | F7: B급
A8: 포수 | B8: 허웅진 | C8: 구매부 | D8: 34 | E8: 8년 | F8: A급 | G8: 감독
A9: 내야수 | B9: 박평천 | C9: 총무부 | D9: 43 | E9: 8년 | F9: A급 | G9: 회장
A10: 내야수 | B10: 갈문주 | C10: 생산부 | D10: 31 | E10: 4년 | F10: C급
A11: 내야수 | B11: 민조항 | C11: 영업부 | D11: 27 | E11: 3년 | F11: B급
A12: 내야수 | B12: 최배훈 | C12: 영업부 | D12: 26 | E12: 1년 | F12: A급
A13: 외야수 | B13: 길주병 | C13: 생산부 | D13: 41 | E13: 8년 | F13: C급
A14: 외야수 | B14: 김빈우 | C14: 경리부 | D14: 32 | E14: 5년 | F14: A급 | G14: 총무
A15: 외야수 | B15: 한민국 | C15: 구매부 | D15: 33 | E15: 7년 | F15: B급
A16: 외야수 | B16: 나대영 | C16: 생산부 | D16: 26 | E16: 2년 | F16: A급
A17: 외야수 | B17: 편대민 | C17: 영업부 | D17: 28 | E17: 4년 | F17: B급

Sheet 매크로작업
A1: [표1] 발화요인에 대한 월별 화재 발생건수 현황
A3: 발화요인 | B3: 1월 | C3: 2월 | D3: 3월 | E3: 4월 | F3: 5월 | G3: 6월 | H3: 7월 | I3: 8월 | J3: 9월 | K3: 10월 | L3: 11월 | M3: 12월 | N3: 평균
A4: 전기적요인 | B4: 1239 | C4: 1006 | D4: 853 | E4: 786 | F4: 795 | G4: 835 | H4: 1156 | I4: 924 | J4: 683 | K4: 664 | L4: 763 | M4: 959 | N4: =AVERAGE(B4:M4) -> 888.5833333
A5: 기계적요인 | B5: 537 | C5: 372 | D5: 332 | E5: 330 | F5: 306 | G5: 265 | H5: 313 | I5: 289 | J5: 306 | K5: 320 | L5: 292 | M5: 410 | N5: =AVERAGE(B5:M5) -> 339.3333333
A6: 화학적요인 | B6: 26 | C6: 26 | D6: 22 | E6: 28 | F6: 19 | G6: 36 | H6: 28 | I6: 26 | J6: 26 | K6: 14 | L6: 30 | M6: 18 | N6: 24.91666667
A7: 가스누출 | B7: 26 | C7: 22 | D7: 8 | E7: 19 | F7: 13 | G7: 16 | H7: 17 | I7: 17 | J7: 11 | K7: 23 | L7: 23 | M7: 22 | N7: 18.08333333
A8: 교통사고 | B8: 55 | C8: 33 | D8: 43 | E8: 42 | F8: 43 | G8: 47 | H8: 42 | I8: 40 | J8: 41 | K8: 45 | L8: 47 | M8: 54 | N8: 44.33333333
A9: 부주의 | B9: 2306 | C9: 2173 | D9: 3210 | E9: 2470 | F9: 1468 | G9: 1399 | H9: 738 | I9: 704 | J9: 1269 | K9: 1397 | L9: 1258 | M9: 1846 | N9: 1686.5
A10: 기타(실화) | B10: 103 | C10: 79 | D10: 96 | E10: 84 | F10: 53 | G10: 52 | H10: 52 | I10: 54 | J10: 50 | K10: 66 | L10: 69 | M10: 103 | N10: 71.75
A11: 자연적요인 | B11: 4 | C11: 2 | D11: 3 | E11: 102 | F11: 22 | G11: 36 | H11: 101 | I11: 81 | J11: 14 | K11: 14 | L11: 4 | M11: 3 | N11: 32.16666667
A12: 방화 | B12: 38 | C12: 43 | D12: 56 | E12: 48 | F12: 54 | G12: 29 | H12: 38 | I12: 29 | J12: 38 | K12: 42 | L12: 38 | M12: 35 | N12: 40.66666667
A13: 방화의심 | B13: 148 | C13: 149 | D13: 209 | E13: 198 | F13: 167 | G13: 132 | H13: 98 | I13: 102 | J13: 125 | K13: 144 | L13: 166 | M13: 124 | N13: 146.8333333
A14: 미상 | B14: 521 | C14: 420 | D14: 430 | E14: 428 | F14: 313 | G14: 327 | H14: 247 | I14: 221 | J14: 306 | K14: 345 | L14: 344 | M14: 455 | N14: 363.0833333

Sheet 차트작업
A1: 정보통신서비스별 세부인력
A3: 서비스 | B3: 2016년 | C3: 2017년 | D3: 2018년 | E3: 2019년 | F3: 2019년
A4: 기간통신서비스 | B4: 45010 | C4: 43023 | D4: 43848 | E4: 43454 | F4: 43755
A5: 별정통신서비스 | B5: 6158 | C5: 6268 | D5: 6400 | E5: 6664 | F5: 6702
A6: 부가통신서비스 | B6: 28628 | C6: 40404 | D6: 43044 | E6: 50824 | F6: 52981
A7: 방송서비스 | B7: 28395 | C7: 28484 | D7: 27048 | E7: 26714 | F7: 26383
